Cogmind - Beta 9 @@@ ROGUE MODE // 2019.10.24 @ 21:17:38 Player: NoNeedToExplain Result: Self-destructed Performance ------------- Evolutions (2) 1000 Regions Visited (4) 800 Robots Destroyed (23) 115 Value Destroyed (405) 405 Prototype IDs (1) 20 Alien Tech Used (0) 0 Bonus (0) 0 TOTAL SCORE: 2340 Bonus ------- None Cogmind --------- Core Integrity 537/550 Matter 211/300 Energy 2/100 System Corruption 0% Temperature Cool (0) Location -8/Materials Parts ------- Power (1) Propulsion (4) Improved Flight Unit Improved Flight Unit Improved Flight Unit Improved Flight Unit Utility (4) Small Storage Unit Advanced Visual Processing Unit Improved Sensor Array Hardened Light Armor Plating Weapon (2) Datajack Heavy Mace Inventory (6) Flight Unit Medium Storage Unit EMP Blaster Mini Grenade Launcher Datajack Peak State ------------ Power Improved Ion Engine Propulsion Improved Flight Unit Improved Flight Unit Improved Flight Unit Improved Flight Unit Utility Small Storage Unit Improved Sensor Array Hardened Light Armor Plating Hacking Suite Weapon Datajack Heavy Mace Inventory Flight Unit Medium Storage Unit Advanced Visual Processing Unit EMP Blaster Mini Grenade Launcher Datajack [Rating: 27] Favorites ----------- Power Light Ion Engine Engine Light Ion Engine Propulsion Aluminum Leg Leg Aluminum Leg Wheel Wheel Flight Unit Improved Flight Unit Utility Hacking Suite Device Disposable Heat Sink Storage Medium Storage Unit Processor Advanced Visual Processing Unit Hackware Hacking Suite Protection Hardened Light Armor Plating Weapon Mini Grenade Launcher Energy Gun Small Laser Launcher Mini Grenade Launcher Impact Weapon Heavy Hammer Special Melee Weapon Datajack Build | -11 -10 -9 -9 -8 ------- Run | Scr Mat Mat Min Mat Slots Evolved 4 | . . 2 . 2 Power . | . . . . . Propulsion 2 | . . 1 . 1 Utility 2 | . . 1 . 1 Weapon . | . . . . . Parts Attached 42 | 6 12 17 3 4 Power 2 | 1 . 1 . . Engine 2 | 1 . 1 . . Core . | . . . . . Reactor . | . . . . . Propulsion 9 | 2 . 6 . 1 Treads . | . . . . . Leg 4 | 2 . 2 . . Wheel 1 | . . 1 . . Hover . | . . . . . Flight 4 | . . 3 . 1 Utility 9 | 1 4 . 2 2 Device 2 | . 1 . 1 . Storage 4 | 1 2 . 1 . Processor 1 | . . . . 1 Hackware 1 | . 1 . . . Protection 1 | . . . . 1 Artifact . | . . . . . Weapon 22 | 2 8 10 1 1 Energy Gun 6 | 2 4 . . . Energy Cannon . | . . . . . Ballistic Gun . | . . . . . Ballistic Cannon . | . . . . . Launcher 6 | . 3 3 . . Special Weapon . | . . . . . Impact Weapon 6 | . . 5 . 1 Slashing Weapon . | . . . . . Piercing Weapon . | . . . . . Special Melee Weapon 4 | . 1 2 1 . Unidentified Prototypes 1 | . . 1 . . Parts Lost 7 | . 1 4 . 2 Power 2 | . . 1 . 1 Propulsion 2 | . . 2 . . Utility 1 | . . . . 1 Weapon 2 | . 1 1 . . Highest Loss Streak 4 | . 1 4 . 2 Average Slot Usage (%) 90 | . 98 70 92 96 Engine 11 | . 14 7 11 9 Leg 19 | . 28 10 . . Wheel 1 | . . 4 . . Flight 6 | . . 6 33 35 Device 3 | . 3 . 7 9 Storage 12 | . 14 11 11 9 Hackware 9 | . 9 11 11 8 Energy Gun 8 | . 12 2 . . Launcher 7 | . 10 3 . . Impact Weapon 2 | . . 5 11 9 Special Melee Weapon 5 | . 4 8 7 9 Naked Turns . | . . . . . Heaviest Build 21 | 10 21 20 18 21 Greatest Support 24 | 20 20 20 18 24 Greatest Overweight (x) 3 | 1 1 3 . . Average Overweight (x) . | . . . . . Largest Inventory Capacity 10 | 6 10 8 8 6 Average Capacity 7 | 5 6 8 6 6 Most Carried 8 | 2 8 8 8 6 Average Carried 6 | 1 6 7 6 5 Final Capacity 6 | . . . . 6 Final Carried 5 | . . . . 5 Class Distribution -------------------- 74% | Mutant 17% | Sprinter 7% | Scavenger-Mutant Dominant Class ---------------- Mutant | -10/Materials Mutant | -9/Materials Sprinter | -9/Mines Sprinter | -8/Materials Resources | -11 -10 -9 -9 -8 ----------- Run | Scr Mat Mat Min Mat Matter Collected 600 | 252 70 215 41 22 Remotely . | . . . . . Salvage Created 466 | . 132 312 . 22 Parts 36 | . 16 20 . . Haulers Intercepted 2 | . 1 1 . . Recyclers Shooed . | . . . . . Parts Field Recycled . | . . . . . Retrieved Matter . | . . . . . Parts Self-Destructed . | . . . . . Prevented . | . . . . . Kills | -11 -10 -9 -9 -8 ------- Run | Scr Mat Mat Min Mat Combat Hostiles Destroyed 17 | . 9 8 . . Melee 2 | . . 2 . . Guns 4 | . 3 1 . . AOE 10 | . 6 4 . . Classes Destroyed 7 | . 4 3 . . Hauler 2 | . 1 1 . . Mechanic 1 | . . 1 . . Operator 1 | . 1 . . . Watcher 2 | . 1 . . 1 Swarmer 13 | . 9 4 . . Grunt 2 | . . 2 . . Sentry 2 | . . 2 . . Best Kill Streak 6 | . 4 6 . 1 Combat Bots Only 5 | . 3 5 . . Max Kills in Single Turn 3 | . 3 2 . 1 Gunslinging . | . . . . . Exploded 3 | . 3 2 . . Melee 1 | . . 1 . . Uniques/NPCs Destroyed . | . . . . . Combat | -11 -10 -9 -9 -8 -------- Run | Scr Mat Mat Min Mat Damage Taken 1021 | . 253 612 10 146 Core 272 | . 28 221 10 13 Absorbed by Shields . | . . . . . Core Remaining (%) 76 | 100 88 . 42 . Volleys Fired 31 | . 21 10 . . Largest 2 | . 2 2 . . Hottest 90 | . 90 70 . . Shots Fired 46 | . 34 12 . . Gun 36 | . 29 7 . . Cannon . | . . . . . Launcher 10 | . 5 5 . . Special . | . . . . . Kinetic . | . . . . . Thermal 24 | . 24 . . . Explosive 8 | . 5 3 . . Electromagnetic 14 | . 5 9 . . Robot Hit Streak 7 | . 7 4 . . Robot Miss Streak 5 | . 5 3 . . Penetration Max . | . . . . . Secondary Targets . | . . . . . Shots Hit Robots 50 | . 23 26 . 1 Core Hits 25 | . 13 12 . . Critical Hits . | . . . . . Critical Kills . | . . . . . Critical Parts Destroyed . | . . . . . Melee Attacks 34 | . 5 27 . 2 Impact 24 | . . 22 . 2 Slashing . | . . . . . Piercing . | . . . . . Sneak Attacks 9 | . 3 6 . . Combat Hostiles . | . . . . . Follow-up Attacks . | . . . . . Damage Inflicted 1338 | . 667 624 . 47 Guns 213 | . 169 44 . . Cannons . | . . . . . Explosions 730 | . 498 232 . . Melee 395 | . . 348 . 47 Ramming . | . . . . . Kinetic . | . . . . . Thermal 156 | . 156 . . . Explosive 594 | . 458 136 . . Electromagnetic 193 | . 53 140 . . Impact 395 | . . 348 . 47 Slashing . | . . . . . Piercing . | . . . . . Highest Corruption . | . . . . . Average Corruption . | . . . . . Corruption Purged . | . . . . . Overload Shots . | . . . . . Overflow Damage 80 | . 49 6 . 25 Projectiles . | . . . . . Explosions 53 | . 49 4 . . Melee 27 | . . 2 . 25 Knockbacks . | . . . . . Impact . | . . . . . Kinetic . | . . . . . Secondary . | . . . . . Self-Inflicted Damage 125 | . 100 25 . . Shots 7 | . 4 3 . . Rammed . | . . . . . Targets Rammed . | . . . . . Kicked . | . . . . . Crushed . | . . . . . Highest Temperature 210 | . 210 4 . 32 Average Temperature 61 | . 74 3 . 15 Received Heat Transfer 180 | . . 129 6 45 Siege Activations . | . . . . . Robots Corrupted 1 | . . 1 . . Combat Hostiles 1 | . . 1 . . Parts Fried 6 | . 2 1 . 3 Impact Corruptions 2 | . . 1 . 1 Robots Melted . | . . . . . Combat Hostiles . | . . . . . Parts Melted 1 | . 1 . . . Heat Transferred 460 | . 460 . . . Parts Sabotaged . | . . . . . Parts Stolen . | . . . . . Parts Stripped . | . . . . . Power Chain Reactions 1 | . 1 . . . Missiles Intercepted . | . . . . . Alert | -11 -10 -9 -9 -8 ------- Run | Scr Mat Mat Min Mat Peak Influence 187 | . 187 147 57 127 Average Influence 59 | . 58 72 57 57 Maximum Alert Level . | . . . . . Low Security (%) 100 | . . . . . Level 1 . | . . . . . Level 2 . | . . . . . Level 3 . | . . . . . Level 4 . | . . . . . Level 5 . | . . . . . High Security . | . . . . . Max Security . | . . . . . Squads Dispatched 6 | . 1 4 . 1 Investigation 1 | . . 1 . . Extermination . | . . . . . Reinforcement 5 | . 1 3 . 1 Assault . | . . . . . Garrison . | . . . . . Intercept . | . . . . . Construction Impeded . | . . . . . Haulers Reinforced . | . . . . . Stealth | -11 -10 -9 -9 -8 --------- Run | Scr Mat Mat Min Mat Distress Signals 5 | . 1 1 . 3 Communications Jammed . | . . . . . Distress Signals . | . . . . . Times Spotted 55 | . 16 19 7 13 Peak Tracking Total 20 | . 4 11 20 14 Tactical Retreats 6 | . 1 1 2 2 Traps | -11 -10 -9 -9 -8 ------- Run | Scr Mat Mat Min Mat Traps Triggered 1 | . . 1 . . Indirectly . | . . . . . Trap Hack Attempts . | . . . . . Triggered . | . . . . . Disarmed . | . . . . . Reprogrammed . | . . . . . Reused . | . . . . . Traps Extracted . | . . . . . Installed . | . . . . . Triggered . | . . . . . Machines | -11 -10 -9 -9 -8 ---------- Run | Scr Mat Mat Min Mat Machines Disabled 4 | . 1 3 . . Max in Single Turn 1 | . 1 1 . . Machines Sabotaged . | . . . . . Garrisons Compromised . | . . . . . Overloaded Fab Kills . | . . . . . Fab Network Shutdowns . | . . . . . Hacking | -11 -10 -9 -9 -8 --------- Run | Scr Mat Mat Min Mat Machines Accessed 11 | . 6 3 . 2 Terminals 10 | . 6 2 . 2 Fabricators . | . . . . . Repair Stations . | . . . . . Recycling Units 1 | . . 1 . . Scanalyzers . | . . . . . Garrison Access . | . . . . . Total Hacks 27 | . 15 5 . 7 Successful 20 | . 11 3 . 6 Failed 7 | . 4 2 . 1 Catastrophic . | . . . . . Database Lockouts . | . . . . . Manual 14 | . 6 3 . 5 Terminals 26 | . 15 4 . 7 Fabricators . | . . . . . Repair Stations . | . . . . . Recycling Units 1 | . . 1 . . Scanalyzers . | . . . . . Garrison Access . | . . . . . Terminal Hacks 18 | . 11 2 . 5 Branch Access Points 1 | . 1 . . . Emergency Access Points 1 | . . . . 1 Terminal Index 2 | . 1 . . 1 Garrison Index 1 | . . . . 1 Alert Level 1 | . . . . 1 Unreport Threat 3 | . 2 1 . . Locate Traps 1 | . 1 . . . Security Status 2 | . 2 . . . Recall Reinforcements 1 | . 1 . . . Zone Layout 5 | . 3 1 . 1 Fabricator Hacks . | . . . . . Repair Station Hacks . | . . . . . Recycling Unit Hacks 1 | . . 1 . . Retrieve Components 1 | . . 1 . . Scanalyzer . | . . . . . Garrison Access Hacks . | . . . . . Unauthorized Hacks 2 | . . . . 2 Terminals 1 | . . . . 1 Track 1 | . . . . 1 Fabricators . | . . . . . Repair Stations . | . . . . . Recycling Units . | . . . . . Scanalyzers . | . . . . . Garrison Access . | . . . . . Data Cores Recovered 1 | . 1 . . . Used . | . . . . . Hacking Detections 9 | . 5 2 . 2 Full Trace Events . | . . . . . Feedback Events . | . . . . . Feedback Blocked . | . . . . . Robot Schematics Acquired . | . . . . . Robots Built . | . . . . . Matter . | . . . . . Time . | . . . . . Total Robot Build Rating . | . . . . . Part Schematics Acquired . | . . . . . Parts Built . | . . . . . Matter . | . . . . . Time . | . . . . . Total Part Build Rating . | . . . . . Parts Repaired . | . . . . . Time . | . . . . . Parts Recycled . | . . . . . Recycled Matter . | . . . . . Retrieved Matter . | . . . . . Retrieved Components . | . . . . . Parts Scanalyzed . | . . . . . Part Schematics Acquired . | . . . . . Parts Damaged . | . . . . . Bothacking | -11 -10 -9 -9 -8 ------------ Run | Scr Mat Mat Min Mat Used RIF Installer . | . . . . . Robots Hacked 6 | . 2 4 . . Non-combat 6 | . 2 4 . . Combat . | . . . . . Robot Hacks Applied 8 | . 3 5 . . parse_system 3 | . 2 1 . . no_distress 3 | . 1 2 . . find_station 1 | . . 1 . . check_alert 1 | . . 1 . . Relay Couplers Released . | . . . . . Robots Rewired . | . . . . . Allies Hacked . | . . . . . Hacks Repelled . | . . . . . Allies | -11 -10 -9 -9 -8 -------- Run | Scr Mat Mat Min Mat Total Allies . | . . . . . Largest Group . | . . . . . Highest-Rated Group . | . . . . . Highest-Rated Ally . | . . . . . Total Orders . | . . . . . Ally Attacks . | . . . . . Total Damage . | . . . . . Kills . | . . . . . Allies Corrupted . | . . . . . Allies Melted . | . . . . . Intel | -11 -10 -9 -9 -8 ------- Run | Scr Mat Mat Min Mat Robot Analysis Total . | . . . . . Derelict Logs Recovered 1 | . . . 1 . Drone Launches . | . . . . . Drone Recoveries . | . . . . . Exploration | -11 -10 -9 -9 -8 ------------- Run | Scr Mat Mat Min Mat Turns Passed 1286 | 51 739 340 64 92 Spaces Moved 1186 | 38 521 245 194 188 Core 21 | 13 . 8 . . Treads . | . . . . . Legs 624 | 25 521 78 . . Wheels 50 | . . 50 . . Hover . | . . . . . Flight 491 | . . 109 194 188 Fastest Speed 26 | 50 120 29 29 26 Average Speed 80 | 101 120 75 29 26 Slowest Speed 245 | 120 150 245 29 29 Overloaded Moves . | . . . . . Propulsion Burnouts . | . . . . . Robots Hopped 11 | . . 2 . 9 Cave-ins Triggered . | . . . . . Exploration Rate (%) 44 | 3 93 28 65 34 Regions Visited 4 Branch Regions 1 Pre-discovered Areas . | . . . . . Known Exits Taken . | . . . . . Unknown Exits Taken 4 | 1 1 1 1 . Scrap Searched 1 | . . . 1 . Spaces Dug 10 | . 7 3 . . Terrain Destroyed 77 | . 43 34 . . Melee 3 | . . 3 . . Projectile . | . . . . . AOE 74 | . 43 31 . . Actions | -11 -10 -9 -9 -8 --------- Run | Scr Mat Mat Min Mat Total 1398 | 47 597 336 202 216 Wait 55 | 2 12 12 . 29 Move 1162 | 37 520 240 193 172 Hop 9 | . . 2 . 7 Pick Up 36 | 2 17 13 3 1 Fast Attach 15 | 6 2 5 . 2 Attach 8 | . 1 3 2 2 Detach 1 | . . 1 . . Swap 19 | . 9 9 1 . Drop 28 | . 10 14 3 1 Fire 31 | . 21 10 . . Melee 34 | . 5 27 . 2 Ram . | . . . . . Kick . | . . . . . Crush . | . . . . . Escape Stasis . | . . . . . Rewire . | . . . . . Trap . | . . . . . Miscellaneous . | . . . . . Route ------- -11/Scrapyard -10/Materials (discovered 5 exits: *Mat x3 / *Min x2) -9/Materials (discovered 2 exits: [*Min x2]) -9/Mines -8/Materials (discovered 1 exit: Fac) History --------- Turn | Location | Event 7 | -11/Scrapyard | Discovered new exit (range 16) 52 | -11/Scrapyard | Entered Materials 52 | -10/Materials | Discovered new exit (range 15) 179 | -10/Materials | Discovered new exit (range 7) 288 | -10/Materials | Discovered new exit (range 16) 325 | -10/Materials | Build established: Mutant 484 | -10/Materials | Discovered new exit (range 11) 550 | -10/Materials | Identified exit to Mines 626 | -10/Materials | Discovered new exit (range 11) 791 | -10/Materials | Entered another Materials area 791 | -9/Materials | Evolved 2 slots: Propulsion x1, Utility x1 895 | -9/Materials | Lost 4 parts (1p2n1w) 943 | -9/Materials | Discovered new exit (range 16) 1101 | -9/Materials | Discovered new exit (range 14) 1122 | -9/Materials | Core integrity fell below 50% 1131 | -9/Materials | Entered Mines 1148 | -9/Mines | Learned location of 1 exit from Materials 1179 | -9/Mines | Assembled infested the area 1184 | -9/Mines | Assisted by a Guerilla fighting off Assembled 1193 | -9/Mines | Discovered new exit (range 11) 1195 | -9/Mines | Entered Materials 1195 | -8/Materials | Evolved 2 slots: Propulsion x1, Utility x1 1196 | -8/Materials | Identified exit to Factory 1287 | -8/Materials | Self-destructed Last Messages --------------- Found 1 garrison access. Downloaded coordinate data. >>Index(Terminals) Found 12 terminals. Downloaded coordinate data. 01257_ ALERT: Hostiles spotted, dispatching reinforcements to Terminal M001. 01275_ Hacking Suite destroyed. 01276_ W-25 Informer sends out distress signal. 01277_ K-01 Serf collects debris. 01282_ Connecting with Terminal... >>Access(Emergency) Found 1 emergency access door: (63,91) Map updated. 01282_ K-01 Serf collects debris. 01282_ W-25 Informer sends out distress signal. 01283_ Slug penetrates Wall. 01283_ Imp. Ion Engine destroyed. 01286_ Slug penetrates Wall. Map ----- +----------------------------------------------------+ | ?? ??????????????????????????????????? | | ?? #??????????????????????????????????? | | #######???# #??????????????????????????????????? | | ??????????# #??????????????????????????????????? | | ??????????# #??????????????????????????????????? | | ??????????# #??????????????????????????????????? | | ??????????# ####??????#####????????????????????? | | ??????????# ??????? #????????????????????? | | ??????????+ ???????? #????????????????????? | | ??????????# ????????? #????????????????????? | | ??????????# ########### #????????????????????? | | ??????????# # # #????????????????????? | | ?########## # "S # #????????????????????? | | ?# # """ # #????????????????????? | | ?# # "" ! # #????????????????????? | | ?# ]]= / # #????????????????????? | | ?# ]] # """ + #????????????????????? | | ?# ]= # """ ## ##????????????????????? | | ### # = """ ## T#????????????????????? | | # ############ ##????????????????????? | | # #??????????#?#?????????????????????? | | + #??????????# ##????????????????????? | | # """ ?????? ????????????????????? | | # """ ???#####+###???????????????????? | | # """ ???# ! #???????????????????? | | # """ ???# @ #???????????????????? | | # ???# #???????????????????? | | ### ????# #???????????????????? | | ??####+######+#??????#########???????????????????? | | ?????????????? ??????????????????????????????????? | | ??????????????????